Workbook

Sheet 一季度
A1: 员工销售业绩表
A2: 姓名 | B2: 一月份 | C2: 二月份 | D2: 三月份 | E2: 汇总 | F2: 总销售额
A3: 章珏 | B3: 113600 | C3: 132800 | D3: 93520 | E3: =SUM(B3:D3) -> 339920 | F3: 679840
A4: 王聪 | B4: 124690 | C4: 108940 | D4: 139390 | E4: =SUM(B4:D4) -> 373020 | F4: 756040
A5: 尹希露 | B5: 148450 | C5: 159500 | D5: 84520 | E5: =SUM(B5:D5) -> 392470 | F5: 784940
A6: 白芸飞 | B6: 121050 | C6: 132500 | D6: 146800 | E6: =SUM(B6:D6) -> 400350 | F6: 810700
A7: 林丽 | B7: 156250 | C7: 96200 | D7: 145050 | E7: =SUM(B7:D7) -> 397500 | F7: 835000
A8: 王家欣 | B8: 154550 | C8: 135650 | D8: 143250 | E8: =SUM(B8:D8) -> 433450 | F8: 836700
A9: 柳丽华 | B9: 136480 | C9: 157620 | D9: 104230 | E9: =SUM(B9:D9) -> 398330 | F9: 846660
A10: 周倩 | B10: 159770 | C10: 155220 | D10: 128360 | E10: =SUM(B10:D10) -> 443350 | F10: 886700
A11: 张海涛 | B11: 155730 | C11: 124500 | D11: 175620 | E11: =SUM(B11:D11) -> 455850 | F11: 911700
A12: 杨文怡 | B12: 176800 | C12: 124600 | D12: 163530 | E12: =SUM(B12:D12) -> 464930 | F12: 929860
A13: 王敬坤 | B13: 135520 | C13: 153890 | D13: 189360 | E13: =SUM(B13:D13) -> 478770 | F13: 937540
A14: 李华 | B14: 125140 | C14: 147730 | D14: 155400 | E14: =SUM(B14:D14) -> 428270 | F14: 948590
A15: 王箫 | B15: 165250 | C15: 154200 | D15: 246250 | E15: =SUM(B15:D15) -> 565700 | F15: 971400
A16: 刘君 | B16: 163490 | C16: 146200 | D16: 183900 | E16: =SUM(B16:D16) -> 493590 | F16: 997180

Sheet 二季度
A1: 员工销售业绩表
A2: 姓名 | B2: 四月份 | C2: 五月份 | D2: 六月份 | E2: 汇总
A3: 王家欣 | B3: 120000 | C3: 140000 | D3: 143250 | E3: =SUM(B3:D3) -> 403250
A4: 李华 | B4: 150000 | C4: 188320 | D4: 182000 | E4: =SUM(B4:D4) -> 520320
A5: 白芸飞 | B5: 151050 | C5: 112500 | D5: 146800 | E5: 410350
A6: 王聪 | B6: 124690 | C6: 108940 | D6: 149390 | E6: 383020
A7: 林丽 | B7: 156250 | C7: 96200 | D7: 185050 | E7: 437500
A8: 刘君 | B8: 163490 | C8: 146200 | D8: 193900 | E8: 503590
A9: 柳丽华 | B9: 136480 | C9: 157620 | D9: 154230 | E9: 448330
A10: 王敬坤 | B10: 135520 | C10: 153890 | D10: 169360 | E10: 458770
A11: 王箫 | B11: 125250 | C11: 134200 | D11: 146250 | E11: 405700
A12: 杨文怡 | B12: 176800 | C12: 124600 | D12: 163530 | E12: 464930
A13: 尹希露 | B13: 148450 | C13: 159500 | D13: 84520 | E13: 392470
A14: 周倩 | B14: 159770 | C14: 155220 | D14: 128360 | E14: 443350
A15: 张海涛 | B15: 155730 | C15: 124500 | D15: 175620 | E15: 455850
A16: 章珏 | B16: 113600 | C16: 132800 | D16: 93520 | E16: 339920
